[Event "26th Abu Dhabi Master 2019"]
[Site "Abu Dhabi"]
[Date "2019.08.07"]
[Round "6.27"]
[White "Viani Antonio Dcunha"]
[Black "Kiriakov, Petr"]
[Result "1/2-1/2"]
[ECO "C00"]
[WhiteElo "2371"]
[BlackElo "2516"]
[Annotator "ChessBase"]
[PlyCount "62"]
[EventDate "2019.08.02"]
[EventType "swiss"]
[EventCountry "UAE"]
[SourceTitle "playchess.com"]
[Source "ChessBase"]
[SourceQuality "1"]
[TimeControl "5400+30"]

1. e4 {[%emt 0:00:46]} e6 {[%emt 0:00:00]} 2. d3 {[%emt 0:00:11]} d5 {[%emt 0:00:00]} 3. Nd2 {[%emt 0:00:14]} Nf6 {[%emt 0:02:17]} 4. Ngf3 {[%emt 0:00:25]} Be7 {[%emt 0:00:48]} 5. g3 {[%emt 0:00:29]} O-O {[%emt 0:00:38]} 6. Bg2 {[%emt 0:00:16]} b5 {[%emt 0:01:05]} 7. O-O {[%emt 0:02:26]} b4 {[%emt 0:02:07]} 8. e5 {[%emt 0:02:56]} Nfd7 {[%emt 0:00:13]} 9. Re1 {[%emt 0:00:26]} c5 {[%emt 0:00:47]} 10. h4 {[%emt 0:01:54]} a5 {[%emt 0:01:12]} 11. Nf1 {[%emt 0:01:18]} Nc6 {[%emt 0:00:47]} 12. N1h2 {[%emt 0:03:23]} Ba6 {[%emt 0:06:46]} 13. h5 {[%emt 0:03:54]} a4 {[%emt 0:05:38]} 14. a3 {[%emt 0:04:45]} bxa3 {[%emt 0:04:32]} 15. bxa3 {[%emt 0:00:11]} c4 {[%emt 0:04:24]} 16. d4 {[%emt 0:00:41]} c3 {[%emt 0:00:45]} 17. Ng4 {[%emt 0:05:07]} Na5 {[%emt 0:04:11]} 18. Bf4 {[%emt 0:05:16]} Nc4 {[%emt 0:08:32]} 19. Qc1 {[%emt 0:01:10]} Rb8 {[%emt 0:09:47]} 20. Bf1 {[%emt 0:02:17]} Rb6 {[%emt 0:15:55]} 21. h6 {[%emt 0:08:15]} g6 {[%emt 0:00:42]} 22. Kg2 {[%emt 0:02:50]} Nb2 {[%emt 0:10:20]} 23. Bxa6 {[%emt 0:03:20]} Rxa6 {[%emt 0:00:03]} 24. Bg5 {[%emt 0:03:18]} Nc4 {[%emt 0:02:18]} 25. Qf4 {[%emt 0:04:15]} Rb6 {[%emt 0:03:52]} 26. Ne3 {[%emt 0:10:34]} Bxg5 {[%emt 0:04:46]} 27. Nxg5 {[%emt 0:02:20]} Nd2 {[%emt 0:00:16]} 28. Nf1 {[%emt 0:08:34]} Nc4 {[%emt 0:01:46]} 29. Ne3 {[%emt 0:01:56]} Nd2 {[%emt 0:00:21]} 30. Nf1 {[%emt 0:00:56]} Nc4 {[%emt 0:04:25]} 31. Ne3 {[%emt 0:01:55]} Nd2 1/2-1/2

[Event "26th Abu Dhabi Master 2019"]
[Site "Abu Dhabi"]
[Date "2019.08.07"]
[Round "6.28"]
[White "Arjun Kalyan"]
[Black "Aronyak Ghosh"]
[Result "0-1"]
[ECO "B04"]
[WhiteElo "2482"]
[BlackElo "2349"]
[Annotator "ChessBase"]
[PlyCount "112"]
[EventDate "2019.08.02"]
[EventType "swiss"]
[EventCountry "UAE"]
[SourceTitle "playchess.com"]
[Source "ChessBase"]
[SourceQuality "1"]
[TimeControl "5400+30"]

1. e4 {[%emt 0:00:00]} Nf6 {[%emt 0:00:04]} 2. e5 {[%emt 0:00:03]} Nd5 {[%emt 0:00:05]} 3. d4 {[%emt 0:00:11]} d6 {[%emt 0:00:05]} 4. Nf3 {[%emt 0:00:13]} dxe5 {[%emt 0:00:06]} 5. Nxe5 {[%emt 0:00:11]} c6 {[%emt 0:00:10]} 6. Be2 {[%emt 0:00:42]} Bf5 {[%emt 0:00:07]} 7. O-O {[%emt 0:00:49]} Nd7 {[%emt 0:00:05]} 8. c4 {[%emt 0:03:28]} Nb4 {[%emt 0:00:07]} 9. Ng4 {[%emt 0:00:25]} e5 {[%emt 0:00:06]} 10. Na3 {[%emt 0:12:39]} exd4 {[%emt 0:12:38]} 11. Qxd4 {[%emt 0:01:46]} h5 {[%emt 0:00:23]} 12. Nh6 {[%emt 0:32:31]} Rxh6 {[%emt 0:07:51]} 13. Bxh6 {[%emt 0:00:09]} gxh6 {[%emt 0:00:04]} 14. Rfe1 {[%emt 0:05:51]} Qf6 {[%emt 0:05:20]} 15. Bg4+ {[%emt 0:01:11]} Be6 {[%emt 0:00:07]} 16. Qxf6 {[%emt 0:02:50]} Nxf6 {[%emt 0:00:02]} 17. Bxe6 {[%emt 0:00:07]} fxe6 {[%emt 0:00:02]} 18. Rxe6+ {[%emt 0:00:01]} Kf7 {[%emt 0:00:01]} 19. Re2 {[%emt 0:01:19]} Rd8 {[%emt 0:01:10]} 20. f3 {[%emt 0:02:27]} Bc5+ {[%emt 0:00:48]} 21. Kf1 {[%emt 0:00:06]} h4 {[%emt 0:01:14]} 22. Nc2 {[%emt 0:00:55]} Nxc2 {[%emt 0:02:16]} 23. Rxc2 {[%emt 0:00:01]} h3 {[%emt 0:00:08]} 24. gxh3 {[%emt 0:12:00]} Rd3 {[%emt 0:03:16]} 25. Re1 {[%emt 0:03:38]} Rxf3+ {[%emt 0:00:48]} 26. Kg2 {[%emt 0:00:02]} Rf4 {[%emt 0:01:32]} 27. b3 {[%emt 0:00:47]} a5 {[%emt 0:04:20]} 28. Rce2 {[%emt 0:01:23]} Rd4 {[%emt 0:04:12]} 29. Rf1 {[%emt 0:00:22]} b6 {[%emt 0:01:53]} 30. Rf5 {[%emt 0:04:53]} Kg6 {[%emt 0:02:26]} 31. Rf3 {[%emt 0:02:46]} Rd1 {[%emt 0:02:32]} 32. Rf1 {[%emt 0:02:15]} Rxf1 {[%emt 0:00:14]} 33. Kxf1 {[%emt 0:00:01]} Kf5 {[%emt 0:00:08]} 34. Kg2 {[%emt 0:00:41]} Ne4 {[%emt 0:00:46]} 35. Kf3 {[%emt 0:03:07]} Ng5+ {[%emt 0:00:06]} 36. Kg3 {[%emt 0:00:08]} Ne6 {[%emt 0:00:46]} 37. Rd2 {[%emt 0:00:24]} Bd4 {[%emt 0:00:08]} 38. Rd1 {[%emt 0:01:27]} Nf4 {[%emt 0:03:45]} 39. Kf3 {[%emt 0:00:57]} c5 {[%emt 0:01:35]} 40. Re1 {[%emt 0:00:37]} Be5 {[%emt 0:00:01]} 41. Rd1 {[%emt 0:00:23]} Bd4 {[%emt 0:00:36]} 42. Re1 {[%emt 0:00:02]} Ne6 {[%emt 0:00:07]} 43. h4 {[%emt 0:01:30]} Bf6 {[%emt 0:00:19]} 44. Rg1 {[%emt 0:01:38]} Nd4+ {[%emt 0:11:09]} 45. Ke3 {[%emt 0:00:05]} Bxh4 {[%emt 0:03:06]} 46. Rg8 {[%emt 0:00:25]} Bg5+ {[%emt 0:00:07]} 47. Kf2 {[%emt 0:02:41]} Bf4 {[%emt 0:00:49]} 48. Rf8+ {[%emt 0:00:46]} Ke4 {[%emt 0:01:29]} 49. Rf6 {[%emt 0:00:08]} Bxh2 {[%emt 0:00:04]} 50. Rxb6 {[%emt 0:01:17]} Bf4 {[%emt 0:00:12]} 51. Ra6 {[%emt 0:01:55]} Bd2 {[%emt 0:00:05]} 52. Ra8 {[%emt 0:00:29]} Kd3 {[%emt 0:00:12]} 53. Rc8 {[%emt 0:00:41]} Bb4 {[%emt 0:00:05]} 54. Rh8 {[%emt 0:00:42]} Kc2 {[%emt 0:00:06]} 55. Rxh6 {[%emt 0:00:09]} Kb2 {[%emt 0:00:03]} 56. Ke3 {[%emt 0:00:50]} Nf5+ {[%emt 0:00:03]} 0-1

[Event "26th Abu Dhabi Master 2019"]
[Site "Abu Dhabi"]
[Date "2019.08.07"]
[Round "6.29"]
[White "Venkatesh, M.R."]
[Black "Mahalakshmi, M."]
[Result "0-1"]
[ECO "B15"]
[WhiteElo "2480"]
[BlackElo "2173"]
[Annotator "ChessBase"]
[PlyCount "62"]
[EventDate "2019.08.02"]
[EventType "swiss"]
[EventCountry "UAE"]
[SourceTitle "playchess.com"]
[Source "ChessBase"]
[SourceQuality "1"]
[TimeControl "5400+30"]

1. e4 {[%emt 0:00:00]} c6 {[%emt 0:00:00]} 2. d4 {[%emt 0:00:03]} d5 {[%emt 0:00:00]} 3. Nd2 {[%emt 0:00:06]} dxe4 {[%emt 0:00:00]} 4. Nxe4 {[%emt 0:00:06]} Nf6 5. Nxf6+ {[%emt 0:00:33]} exf6 {[%emt 0:00:00]} 6. c3 {[%emt 0:00:10]} Bd6 {[%emt 0:00:00]} 7. Bd3 {[%emt 0:00:09]} O-O {[%emt 0:00:05]} 8. Ne2 {[%emt 0:00:05]} Re8 {[%emt 0:00:29]} 9. Qc2 {[%emt 0:00:18]} h5 {[%emt 0:00:02]} 10. O-O {[%emt 0:00:21]} h4 {[%emt 0:00:13]} 11. h3 {[%emt 0:12:37]} Nd7 {[%emt 0:00:09]} 12. Kh1 {[%emt 0:08:00]} Nf8 {[%emt 0:03:16]} 13. Ng1 {[%emt 0:03:32]} Bc7 {[%emt 0:07:10]} 14. f4 {[%emt 0:02:26]} Ne6 {[%emt 0:07:15]} 15. Bc4 {[%emt 0:08:14]} b5 {[%emt 0:03:22]} 16. Bb3 {[%emt 0:00:18]} Qd6 {[%emt 0:04:16]} 17. Qf2 {[%emt 0:17:10]} g5 {[%emt 0:03:16]} 18. Qc2 {[%emt 0:04:18]} Ng7 {[%emt 0:03:33]} 19. Nf3 {[%emt 0:04:30]} Bf5 {[%emt 0:04:14]} 20. Qf2 {[%emt 0:00:52]} Nh5 {[%emt 0:05:18]} 21. Nxh4 {[%emt 0:06:40]} gxh4 {[%emt 0:01:57]} 22. Qxh4 {[%emt 0:00:06]} Ng7 {[%emt 0:01:58]} 23. Rf3 {[%emt 0:02:56]} Bg6 {[%emt 0:08:28]} 24. Rg3 {[%emt 0:01:25]} Re1+ {[%emt 0:07:08]} 25. Kh2 {[%emt 0:00:05]} Rxc1 {[%emt 0:00:53]} 26. Bxf7+ {[%emt 0:02:10]} Kxf7 {[%emt 0:03:04]} 27. Qh6 {[%emt 0:00:11]} Rxa1 {[%emt 0:05:59]} 28. Qxg6+ {[%emt 0:00:56]} Ke6 {[%emt 0:01:30]} 29. Qe4+ {[%emt 0:07:10]} Kd7 {[%emt 0:00:48]} 30. Rxg7+ {[%emt 0:00:07]} Kc8 {[%emt 0:00:19]} 31. Qf5+ {[%emt 0:00:35]} Kb8 {[%emt 0:02:10]} 0-1

[Event "26th Abu Dhabi Master 2019"]
[Site "Abu Dhabi"]
[Date "2019.08.07"]
[Round "6.30"]
[White "Vignesh N R"]
[Black "Ilyasli, Ughur"]
[Result "1-0"]
[ECO "D76"]
[WhiteElo "2466"]
[BlackElo "2104"]
[Annotator "ChessBase"]
[PlyCount "61"]
[EventDate "2019.08.02"]
[EventType "swiss"]
[EventCountry "UAE"]
[SourceTitle "playchess.com"]
[Source "ChessBase"]
[SourceQuality "1"]
[TimeControl "5400+30"]

1. d4 {[%emt 0:00:44]} Nf6 {[%emt 0:00:00]} 2. Nf3 {[%emt 0:01:26]} g6 {[%emt 0:02:04]} 3. g3 {[%emt 0:02:38]} d5 {[%emt 0:02:30]} 4. c4 {[%emt 0:00:28]} Bg7 {[%emt 0:01:33]} 5. cxd5 {[%emt 0:00:19]} Nxd5 {[%emt 0:00:03]} 6. Bg2 {[%emt 0:00:07]} O-O {[%emt 0:01:17]} 7. O-O {[%emt 0:00:10]} Nb6 {[%emt 0:01:29]} 8. Nc3 {[%emt 0:03:05]} Nc6 {[%emt 0:01:51]} 9. e3 {[%emt 0:00:05]} a5 {[%emt 0:09:40]} 10. Qe2 {[%emt 0:04:36]} Be6 {[%emt 0:11:37]} 11. Nd2 {[%emt 0:06:19]} a4 {[%emt 0:00:20]} 12. Rd1 {[%emt 0:02:13]} f5 {[%emt 0:04:52]} 13. Ndb1 {[%emt 0:13:18]} Bc4 {[%emt 0:06:20]} 14. Qe1 {[%emt 0:00:14]} Bf7 {[%emt 0:02:34]} 15. Na3 {[%emt 0:01:21]} Qc8 {[%emt 0:09:59]} 16. d5 {[%emt 0:04:44]} Nb4 {[%emt 0:07:17]} 17. e4 {[%emt 0:00:54]} fxe4 {[%emt 0:04:25]} 18. Qxe4 {[%emt 0:00:15]} Bxc3 {[%emt 0:01:31]} 19. bxc3 {[%emt 0:00:16]} N4xd5 {[%emt 0:00:03]} 20. c4 {[%emt 0:02:35]} Nf6 {[%emt 0:07:08]} 21. Qxe7 {[%emt 0:03:16]} Qe6 {[%emt 0:02:55]} 22. Qxc7 {[%emt 0:05:18]} Rac8 {[%emt 0:00:03]} 23. Qxb7 {[%emt 0:05:49]} Nxc4 {[%emt 0:00:16]} 24. Nxc4 {[%emt 0:00:06]} Rxc4 {[%emt 0:00:02]} 25. Bh6 {[%emt 0:04:57]} Re8 {[%emt 0:04:10]} 26. Qb2 {[%emt 0:00:09]} Qf5 {[%emt 0:04:02]} 27. Rd6 {[%emt 0:01:57]} Qh5 {[%emt 0:06:01]} 28. Rxf6 {[%emt 0:03:37]} Qxh6 {[%emt 0:00:21]} 29. Rxf7 {[%emt 0:00:23]} Rec8 {[%emt 0:03:29]} 30. Bd5 {[%emt 0:00:21]} Rc1+ {[%emt 0:00:03]} 31. Kg2 {[%emt 0:00:26]} 1-0

[Event "26th Abu Dhabi Master 2019"]
[Site "Abu Dhabi"]
[Date "2019.08.07"]
[Round "6.31"]
[White "Vantika Agrawal"]
[Black "Shyaamnikhil P"]
[Result "0-1"]
[ECO "A40"]
[WhiteElo "2243"]
[BlackElo "2456"]
[Annotator "ChessBase"]
[PlyCount "144"]
[EventDate "2019.08.02"]
[EventType "swiss"]
[EventCountry "UAE"]
[SourceTitle "playchess.com"]
[Source "ChessBase"]
[SourceQuality "1"]
[TimeControl "5400+30"]

1. d4 {[%emt 0:00:05]} g6 {[%emt 0:00:43]} 2. Nf3 {[%emt 0:00:19]} Bg7 {[%emt 0:00:13]} 3. c4 {[%emt 0:00:09]} c5 {[%emt 0:03:38]} 4. d5 {[%emt 0:00:18]} Nf6 {[%emt 0:01:54]} 5. Nc3 {[%emt 0:00:24]} O-O {[%emt 0:00:10]} 6. g3 {[%emt 0:01:35]} a6 {[%emt 0:01:33]} 7. a4 {[%emt 0:02:39]} e6 {[%emt 0:00:16]} 8. Bg2 {[%emt 0:01:12]} exd5 {[%emt 0:00:08]} 9. cxd5 {[%emt 0:00:34]} d6 {[%emt 0:00:19]} 10. O-O {[%emt 0:02:57]} Re8 {[%emt 0:01:00]} 11. Re1 {[%emt 0:00:09]} Nbd7 {[%emt 0:12:39]} 12. Bf4 {[%emt 0:00:20]} Qc7 {[%emt 0:02:40]} 13. h3 {[%emt 0:00:30]} Rb8 {[%emt 0:04:21]} 14. e4 {[%emt 0:00:20]} Nh5 {[%emt 0:01:16]} 15. Bd2 {[%emt 0:08:31]} b5 {[%emt 0:01:16]} 16. axb5 {[%emt 0:02:09]} axb5 {[%emt 0:00:05]} 17. Bf1 {[%emt 0:28:26]} c4 {[%emt 0:14:45]} 18. g4 {[%emt 0:03:23]} Nhf6 {[%emt 0:07:55]} 19. b4 {[%emt 0:08:04]} cxb3 {[%emt 0:04:06]} 20. Qxb3 {[%emt 0:02:11]} Nxe4 {[%emt 0:15:17]} 21. Rac1 {[%emt 0:03:44]} Nef6 {[%emt 0:03:32]} 22. Rxe8+ {[%emt 0:04:20]} Nxe8 {[%emt 0:00:07]} 23. Nxb5 {[%emt 0:00:48]} Qd8 {[%emt 0:01:53]} 24. Bg5 {[%emt 0:12:35]} Qa5 {[%emt 0:02:34]} 25. Qe3 {[%emt 0:06:42]} Bb7 {[%emt 0:01:53]} 26. Qe7 {[%emt 0:09:09]} Ndf6 {[%emt 0:09:16]} 27. Nxd6 {[%emt 0:01:19]} Bxd5 {[%emt 0:01:14]} 28. Nc4 {[%emt 0:00:32]} Qa8 {[%emt 0:03:55]} 29. Nfd2 {[%emt 0:00:30]} h5 {[%emt 0:02:25]} 30. gxh5 {[%emt 0:00:32]} Nxh5 {[%emt 0:00:12]} 31. Re1 {[%emt 0:00:29]} Bf6 {[%emt 0:00:57]} 32. Bxf6 {[%emt 0:00:15]} Nexf6 {[%emt 0:00:06]} 33. Qd6 {[%emt 0:00:45]} Rd8 {[%emt 0:00:29]} 34. Qc7 {[%emt 0:00:27]} Rc8 {[%emt 0:00:33]} 35. Qd6 {[%emt 0:00:32]} Qb8 {[%emt 0:02:13]} 36. Qxb8 {[%emt 0:00:23]} Rxb8 {[%emt 0:00:05]} 37. Ne3 {[%emt 0:00:38]} Be6 {[%emt 0:00:08]} 38. Nf3 {[%emt 0:00:29]} Kg7 {[%emt 0:00:47]} 39. Ng5 {[%emt 0:00:14]} Nf4 {[%emt 0:00:22]} 40. Rd1 {[%emt 0:00:47]} Rh8 {[%emt 0:00:51]} 41. Kh2 {[%emt 0:00:29]} Rh5 {[%emt 0:00:42]} 42. Nxe6+ {[%emt 0:00:14]} Nxe6 {[%emt 0:00:06]} 43. Be2 {[%emt 0:00:36]} Rh8 {[%emt 0:00:16]} 44. Bg4 {[%emt 0:00:41]} Nxg4+ {[%emt 0:01:22]} 45. Nxg4 {[%emt 0:00:03]} Nf4 {[%emt 0:00:06]} 46. Kg3 {[%emt 0:00:27]} g5 {[%emt 0:00:35]} 47. Rh1 {[%emt 0:00:30]} f5 {[%emt 0:00:42]} 48. Ne3 {[%emt 0:00:23]} Kg6 {[%emt 0:00:11]} 49. Ng2 {[%emt 0:01:05]} Nh5+ {[%emt 0:01:31]} 50. Kf3 {[%emt 0:00:22]} Ra8 {[%emt 0:00:29]} 51. Rb1 {[%emt 0:00:38]} Ra3+ {[%emt 0:00:34]} 52. Ke2 {[%emt 0:00:11]} Rxh3 {[%emt 0:01:04]} 53. Rb6+ {[%emt 0:00:06]} Nf6 {[%emt 0:00:15]} 54. Ne3 {[%emt 0:00:35]} Rh7 {[%emt 0:00:10]} 55. Kf3 {[%emt 0:01:12]} Rd7 {[%emt 0:00:17]} 56. Ke2 {[%emt 0:00:29]} Re7 {[%emt 0:00:21]} 57. Kd3 {[%emt 0:00:27]} Re5 {[%emt 0:01:06]} 58. Ra6 {[%emt 0:00:26]} g4 {[%emt 0:00:21]} 59. Nc4 {[%emt 0:00:34]} Rd5+ {[%emt 0:00:58]} 60. Ke2 {[%emt 0:00:34]} f4 {[%emt 0:00:17]} 61. Nd2 {[%emt 0:00:31]} Kf5 {[%emt 0:00:15]} 62. Ra4 {[%emt 0:00:28]} Nd7 {[%emt 0:00:37]} 63. Ra8 {[%emt 0:00:26]} Re5+ {[%emt 0:00:34]} 64. Kf1 {[%emt 0:00:08]} Rc5 {[%emt 0:00:15]} 65. Rd8 {[%emt 0:00:35]} f3 {[%emt 0:01:03]} 66. Kg1 {[%emt 0:00:33]} Nf6 {[%emt 0:00:21]} 67. Kh2 {[%emt 0:00:26]} Rc2 {[%emt 0:00:38]} 68. Rd3 {[%emt 0:00:51]} Ne4 {[%emt 0:00:31]} 69. Nxe4 {[%emt 0:00:32]} Kxe4 {[%emt 0:00:06]} 70. Re3+ {[%emt 0:00:27]} Kf4 {[%emt 0:00:05]} 71. Kg1 {[%emt 0:00:35]} Rc1+ {[%emt 0:00:08]} 72. Kh2 {[%emt 0:00:30]} g3+ {[%emt 0:00:06]} 0-1

[Event "26th Abu Dhabi Master 2019"]
[Site "Abu Dhabi"]
[Date "2019.08.07"]
[Round "6.32"]
[White "Pranav Anand"]
[Black "Shevchenko, Kirill"]
[Result "0-1"]
[ECO "E20"]
[WhiteElo "2347"]
[BlackElo "2536"]
[Annotator "ChessBase"]
[PlyCount "104"]
[EventDate "2019.08.02"]
[EventType "swiss"]
[EventCountry "UAE"]
[SourceTitle "playchess.com"]
[Source "ChessBase"]
[SourceQuality "1"]
[TimeControl "5400+30"]

1. d4 {[%emt 0:00:00]} Nf6 {[%emt 0:00:00]} 2. c4 {[%emt 0:00:00]} e6 {[%emt 0:00:00]} 3. Nc3 {[%emt 0:00:00]} Bb4 {[%emt 0:00:00]} 4. f3 {[%emt 0:00:01]} c5 {[%emt 0:02:30]} 5. d5 {[%emt 0:00:07]} d6 {[%emt 0:01:45]} 6. e4 {[%emt 0:00:06]} O-O {[%emt 0:00:49]} 7. Nge2 {[%emt 0:00:47]} a6 {[%emt 0:00:52]} 8. Ng3 {[%emt 0:03:38]} b5 {[%emt 0:02:42]} 9. Be3 {[%emt 0:09:18]} Re8 {[%emt 0:10:10]} 10. Be2 {[%emt 0:08:14]} exd5 {[%emt 0:17:56]} 11. cxd5 {[%emt 0:00:10]} Nbd7 {[%emt 0:02:34]} 12. a3 {[%emt 0:04:38]} Ba5 {[%emt 0:03:26]} 13. O-O {[%emt 0:00:51]} c4 {[%emt 0:05:34]} 14. Nf5 {[%emt 0:17:25]} Nb6 {[%emt 0:12:47]} 15. Ng3 {[%emt 0:15:12]} Nbd7 {[%emt 0:08:52]} 16. Nf5 {[%emt 0:01:23]} Bb6 {[%emt 0:05:23]} 17. Nd4 {[%emt 0:03:16]} Nc5 {[%emt 0:04:31]} 18. Qd2 {[%emt 0:00:44]} Nfd7 {[%emt 0:05:05]} 19. a4 {[%emt 0:07:20]} b4 {[%emt 0:02:31]} 20. Nd1 {[%emt 0:11:21]} Ne5 {[%emt 0:02:33]} 21. Nf2 {[%emt 0:00:07]} a5 {[%emt 0:02:17]} 22. f4 {[%emt 0:10:17]} Ned3 {[%emt 0:00:07]} 23. Bxd3 {[%emt 0:01:09]} cxd3 {[%emt 0:00:31]} 24. Nc6 {[%emt 0:00:12]} Qc7 {[%emt 0:03:22]} 25. Bxc5 {[%emt 0:00:34]} Bxc5 {[%emt 0:00:05]} 26. Kh1 {[%emt 0:00:08]} Bxf2 {[%emt 0:01:59]} 27. Rxf2 {[%emt 0:00:36]} Rxe4 {[%emt 0:00:45]} 28. f5 {[%emt 0:02:02]} Qb6 {[%emt 0:01:55]} 29. f6 {[%emt 0:01:35]} Qe3 {[%emt 0:00:58]} 30. Rc1 {[%emt 0:03:06]} gxf6 {[%emt 0:01:20]} 31. Nxa5 {[%emt 0:00:25]} Qxd2 {[%emt 0:00:35]} 32. Rxd2 {[%emt 0:00:05]} Rxa5 {[%emt 0:00:01]} 33. Rxc8+ Kg7 34. Kg1 {[%emt 0:01:18]} Rxd5 {[%emt 0:00:02]} 35. a5 {[%emt 0:01:02]} Rf5 {[%emt 0:02:59]} 36. h3 {[%emt 0:00:00]} Re1+ {[%emt 0:00:13]} 37. Kh2 {[%emt 0:00:00]} Rd5 {[%emt 0:00:29]} 38. a6 {[%emt 0:00:25]} Ra1 {[%emt 0:00:04]} 39. Rc4 {[%emt 0:00:08]} Rxa6 {[%emt 0:01:04]} 40. Rxb4 {[%emt 0:00:04]} f5 {[%emt 0:00:01]} 41. Rb3 {[%emt 0:00:39]} Kf6 {[%emt 0:00:12]} 42. Rbxd3 {[%emt 0:00:06]} Rxd3 {[%emt 0:00:01]} 43. Rxd3 {[%emt 0:00:02]} Ke5 {[%emt 0:00:00]} 44. Re3+ {[%emt 0:00:34]} Kf4 {[%emt 0:01:17]} 45. Re7 {[%emt 0:00:35]} d5 {[%emt 0:00:07]} 46. Rxf7 {[%emt 0:01:54]} d4 {[%emt 0:00:42]} 47. Rxh7 {[%emt 0:01:10]} Rd6 {[%emt 0:00:39]} 48. Re7 {[%emt 0:00:27]} d3 {[%emt 0:00:04]} 49. Re1 {[%emt 0:00:05]} d2 {[%emt 0:00:02]} 50. Rd1 {[%emt 0:00:15]} Ke3 {[%emt 0:00:10]} 51. Kg3 {[%emt 0:00:39]} Rg6+ {[%emt 0:00:13]} 52. Kh2 {[%emt 0:00:41]} Ke2 {[%emt 0:00:05]} 0-1

[Event "26th Abu Dhabi Master 2019"]
[Site "Abu Dhabi"]
[Date "2019.08.07"]
[Round "6.33"]
[White "Nguyen, Anh Khoi"]
[Black "Raja Rithvik R"]
[Result "1-0"]
[ECO "D37"]
[WhiteElo "2516"]
[BlackElo "2357"]
[Annotator "ChessBase"]
[PlyCount "51"]
[EventDate "2019.08.02"]
[EventType "swiss"]
[EventCountry "UAE"]
[SourceTitle "playchess.com"]
[Source "ChessBase"]
[SourceQuality "1"]
[TimeControl "5400+30"]

1. d4 Nf6 2. c4 e6 3. Nf3 d5 4. Nc3 Be7 5. cxd5 exd5 6. Qc2 c6 7. Bg5 g6 8. e3 Bf5 9. Bd3 Bxd3 10. Qxd3 O-O 11. Bxf6 Bxf6 12. h4 Nd7 13. h5 Re8 14. O-O-O a5 15. e4 dxe4 16. Nxe4 Nb6 17. hxg6 hxg6 18. Ne5 Kg7 19. Qe3 Kg8 20. Nxf6+ Qxf6 21. Ng4 Qg7 22. Qa3 Qf8 23. Nf6+ Kg7 24. Qf3 Qe7 25. Rh7+ Kf8 26. Rdh1 1-0

[Event "26th Abu Dhabi Master 2019"]
[Site "Abu Dhabi"]
[Date "2019.08.07"]
[Round "6.34"]
[White "Manush Shah"]
[Black "Iniyan, P."]
[Result "1/2-1/2"]
[ECO "E63"]
[WhiteElo "2373"]
[BlackElo "2524"]
[Annotator "ChessBase"]
[PlyCount "56"]
[EventDate "2019.08.02"]
[EventType "swiss"]
[EventCountry "UAE"]
[SourceTitle "playchess.com"]
[Source "ChessBase"]
[SourceQuality "1"]
[TimeControl "5400+30"]

1. d4 {[%emt 0:02:10]} Nf6 {[%emt 0:00:00]} 2. Nf3 {[%emt 0:00:09]} g6 {[%emt 0:00:00]} 3. c4 {[%emt 0:00:05]} Bg7 {[%emt 0:00:30]} 4. g3 {[%emt 0:00:04]} O-O {[%emt 0:00:21]} 5. Bg2 {[%emt 0:00:05]} d6 {[%emt 0:00:08]} 6. Nc3 {[%emt 0:00:05]} Nc6 {[%emt 0:00:06]} 7. O-O {[%emt 0:00:08]} a6 {[%emt 0:00:03]} 8. Qd3 {[%emt 0:00:07]} Bd7 {[%emt 0:01:41]} 9. d5 {[%emt 0:00:09]} Nb4 {[%emt 0:00:05]} 10. Qd1 {[%emt 0:00:12]} a5 {[%emt 0:00:05]} 11. a3 {[%emt 0:00:32]} Na6 {[%emt 0:00:09]} 12. Be3 {[%emt 0:01:29]} Qc8 {[%emt 0:04:29]} 13. Bd4 {[%emt 0:03:55]} Re8 {[%emt 0:02:31]} 14. e4 {[%emt 0:06:23]} e5 {[%emt 0:09:26]} 15. dxe6 {[%emt 0:11:04]} Bxe6 {[%emt 0:00:32]} 16. Nd5 {[%emt 0:10:32]} Qd8 {[%emt 0:01:28]} 17. Re1 {[%emt 0:02:29]} Bg4 {[%emt 0:01:32]} 18. h3 {[%emt 0:11:45]} Bxf3 {[%emt 0:00:11]} 19. Qxf3 {[%emt 0:00:45]} Nxd5 {[%emt 0:00:18]} 20. Bxg7 {[%emt 0:00:04]} Kxg7 {[%emt 0:00:09]} 21. cxd5 {[%emt 0:00:52]} Nc5 {[%emt 0:02:19]} 22. Rac1 {[%emt 0:04:43]} Qf6 {[%emt 0:01:54]} 23. Qxf6+ {[%emt 0:03:24]} Kxf6 {[%emt 0:00:07]} 24. Re3 {[%emt 0:00:20]} a4 {[%emt 0:00:48]} 25. f4 {[%emt 0:07:02]} Kg7 {[%emt 0:06:41]} 26. e5 {[%emt 0:06:57]} Ra5 {[%emt 0:08:37]} 27. Bf1 {[%emt 0:07:57]} Re7 {[%emt 0:02:19]} 28. Kf2 {[%emt 0:01:44]} f5 {[%emt 0:07:55]} 1/2-1/2